bitfinex-derivatives/quotes_ETHF0:USTF0_20250917
["timestamp","ask_amount","ask_price","bid_price","bid_amount"]
[1758072652331,0.4164,4511.7,4511.6,1.44586545]
[1758072652532,0.7133,4511.7,4511.6,1.64696545]
[1758072654528,0.4164,4511.7,4511.6,0.2004]
[1758072654734,0.7393,4511.7,4511.6,0.2004]
[1758072655228,0.7393,4511.7,4511.1,0.0075]
[1758072655229,0.7211,4511.2,4511.1,0.2079]
[1758072655428,0.7211,4511.2,4511.1,0.0075]
[1758072655625,0.3229,4511.1,4510.4,0.3006]
[1758072655830,0.8485,4511.0,4510.9,0.4078]
[1758072657242,0.7211,4510.9,4510.8,0.2004]
[1758072657833,0.1274,4510.5,4510.4,0.7084]
[1758072658040,0.8485,4510.5,4510.4,0.4078]
[1758072658339,0.8485,4510.5,4510.4,0.7029]
[1758072659040,0.7211,4510.5,4510.4,0.7029]
[1758072659427,0.651,4511.0,4510.9,0.4263]
[1758072659739,0.8665,4511.0,4510.9,1.36716545]
[1758072660230,0.8665,4511.0,4510.9,1.66226545]
[1758072660434,3.2078,4511.5,4511.3,0.4263]
[1758072660634,0.5377,4511.5,4510.7,3.2078]
[1758072660842,0.7391,4510.8,4510.7,0.2127]
[1758072661942,0.8559,4510.5,4510.4,0.2127]
[1758072662136,0.8559,4510.5,4509.7,0.0077]
[1758072662137,0.8559,4510.5,4509.7,3.2155]
[1758072662361,0.4209,4509.8,4509.7,3.6418]
[1758072662536,0.7391,4509.8,4509.7,3.6418]
[1758072662734,0.7391,4509.8,4509.7,0.4263]
[1758072663040,0.7391,4509.8,4509.7,0.2127]
[1758072665042,0.7391,4509.8,4509.7,0.4263]
[1758072666335,1.28267173,4509.8,4509.7,0.4263]
[1758072668128,1.28267173,4509.8,4509.7,0.7214]
[1758072668540,1.06717173,4509.8,4509.7,0.7214]
[1758072669334,1.28267173,4509.8,4509.7,0.4263]
[1758072669539,0.3222,4509.5,4509.4,0.5078]
[1758072669734,0.6404,4509.5,4509.4,0.7214]
[1758072669935,0.54357173,4509.5,4509.4,0.7214]
[1758072670237,0.3182,4509.8,4509.4,0.4263]
[1758072670441,0.54357173,4509.9,4509.4,0.4263]
[1758072670442,0.54357173,4509.7,4509.4,0.4263]
[1758072670738,0.3182,4509.5,4509.4,0.7214]
[1758072670943,0.5236,4509.9,4509.8,0.7214]
[1758072671143,1.06359491,4509.9,4509.8,0.7214]
[1758072671442,1.27909491,4509.9,4509.8,0.4263]
[1758072675550,1.27909491,4509.9,4509.8,0.2127]
[1758072676748,1.27909491,4509.9,4509.8,0.7214]
[1758072677240,0.85819491,4509.9,4509.8,0.7214]
[1758072677447,1.06359491,4509.9,4509.8,0.7214]
[1758072678244,1.27909491,4509.9,4509.8,0.4263]
[1758072679046,1.27909491,4509.9,4509.8,0.2127]
[1758072679346,1.27909491,4509.9,4509.8,0.7214]
[1758072679748,1.27909491,4509.9,4509.8,3.9292]
[1758072680435,0.85819491,4509.9,4509.8,3.9292]
[1758072680635,0.3182,4510.4,4510.3,0.4263]
[1758072680841,1.06286024,4510.4,4510.3,0.7214]
[1758072682448,0.53926024,4510.4,4510.3,0.7214]
[1758072682645,3.2078,4510.9,4510.4,0.2951]
[1758072682843,0.7391,4510.7,4510.6,0.4263]
[1758072683043,1.2787591,4510.7,4510.6,0.4263]
[1758072684449,1.2787591,4510.7,4510.6,1.36994085]
[1758072684868,1.2787591,4510.7,4510.6,0.4263]
[1758072685156,1.2787591,4510.7,4510.6,1.36994085]
[1758072685748,1.2787591,4510.7,4510.6,1.21267073]
[1758072686148,0.5396591,4510.7,4510.6,0.7214]
[1758072686351,0.5236,4511.4,4511.3,0.4263]
[1758072686553,0.7391,4511.4,4511.3,1.21267073]
[1758072686957,0.7391,4511.4,4511.3,1.50777073]
[1758072687256,0.3182,4511.4,4511.3,4.71557073]
[1758072687459,0.5236,4511.9,4511.8,0.7214]
[1758072687761,0.7391,4511.9,4511.5,0.2951]
[1758072687968,0.1168,4511.0,4510.5,3.2078]
[1758072688257,0.4209,4510.9,4510.5,3.2078]
[1758072688459,0.7322,4510.9,4510.5,3.2078]
[1758072688652,0.7322,4510.9,4510.8,0.2199]
[1758072689052,0.7322,4510.9,4510.8,0.0178]
[1758072689354,0.7313,4510.2,4510.1,0.223]
[1758072689656,0.8584,4510.0,4509.9,0.84401]
[1758072689848,0.8584,4510.0,4509.9,1.16561]
[1758072690247,0.5237,4510.4,4510.3,0.3993]
[1758072690551,0.5237,4510.4,4510.3,0.7209]
[1758072690747,0.7313,4510.4,4510.3,0.7209]
[1758072691154,0.7313,4510.4,4510.3,0.3993]
[1758072694463,0.7313,4510.4,4509.7,3.2078]
[1758072694666,0.7313,4509.8,4509.5,0.0202]
[1758072694863,0.7313,4509.8,4509.7,0.7209]
[1758072695069,0.5237,4510.0,4509.9,0.7209]
[1758072695365,0.8584,4510.0,4509.5,0.0202]
[1758072695571,0.8584,4510.0,4509.5,0.2432]
[1758072695768,0.8584,4510.0,4509.5,0.0202]
[1758072696664,0.8584,4510.0,4509.2,3.4308]
[1758072696870,0.5237,4509.3,4509.2,3.8301]
[1758072697070,0.5237,4509.3,4509.2,4.1517]
[1758072697366,0.7313,4509.3,4509.2,3.6071]
[1758072699166,0.7313,4509.3,4509.2,3.9287]
[1758072699872,0.7313,4509.3,4509.2,3.4099]
[1758072700980,0.7313,4509.3,4509.2,0.2021]
[1758072703580,0.7313,4509.3,4509.2,0.3993]
[1758072703774,0.7313,4509.3,4509.2,0.7209]
[1758072704675,0.7313,4509.3,4509.2,0.2021]
[1758072705175,0.7313,4509.3,4509.2,0.7209]
[1758072706685,0.3113,4509.9,4509.3,0.3216]
[1758072706984,0.7313,4509.9,4509.8,3.15020058]
[1758072707280,0.8584,4509.5,4509.4,0.2021]
[1758072707882,0.8584,4509.5,4509.4,3.4099]
[1758072709079,0.8584,4509.5,4509.4,3.6329]
[1758072709481,0.8584,4509.5,4509.4,4.1517]
[1758072709777,0.8584,4509.5,4509.4,3.99461839]
[1758072710180,0.8584,4509.5,4509.4,4.39391839]
[1758072710485,0.8584,4509.5,4509.4,4.71551839]
[1758072712184,0.5237,4509.5,4509.4,4.71551839]
[1758072712490,0.5471,4510.0,4509.9,0.2021]
[1758072712680,0.5471,4510.0,4509.9,1.50771839]
[1758072713082,0.8584,4510.0,4509.9,1.18611839]
[1758072713387,0.8584,4510.0,4509.9,0.78681839]
[1758072713586,0.8584,4509.5,4509.4,3.2078]
[1758072713782,0.7313,4509.4,4509.3,0.223]
[1758072713984,0.7313,4509.4,4509.3,0.78681839]
[1758072714183,0.7313,4509.4,4509.3,0.98891839]
[1758072715685,0.7313,4509.4,4509.3,0.2021]
[1758072715893,0.7024,4508.9,4508.8,3.4165]
[1758072716190,0.7024,4508.9,4508.4,0.7054]
[1758072716191,0.8196,4508.5,4508.4,1.68061839]
[1758072716382,0.8196,4508.5,4508.4,1.90361839]
[1758072716781,0.8196,4508.5,4508.4,2.10731839]
[1758072716984,0.8196,4508.5,4508.4,2.41661839]
[1758072717286,0.8196,4508.5,4508.4,0.99551839]
[1758072717793,0.8196,4508.5,4508.4,0.2087]
[1758072718086,0.3185,4508.4,4507.8,3.5171]
[1758072718290,0.8543,4508.0,4507.9,0.9307]
[1758072719982,0.8543,4508.0,4507.9,0.6214]
[1758072721089,0.8543,4508.0,4507.9,0.1973]
[1758072722589,0.8543,4508.0,4507.9,0.7077]
[1758072722793,0.7364,4508.0,4507.9,0.7077]
[1758072723586,0.5275,4508.0,4507.9,0.7077]
[1758072725192,0.3185,4508.4,4508.0,0.0981]
[1758072725488,0.7364,4508.4,4508.3,0.1973]
[1758072725688,0.4364,4508.0,4507.9,0.1973]
[1758072725885,0.8543,4508.0,4507.9,0.1973]
[1758072726085,0.8543,4508.0,4507.9,0.7077]
[1758072727199,0.1172,4508.5,4508.0,0.3093]
[1758072727399,0.7364,4508.4,4508.3,0.1973]
[1758072730998,0.3185,4508.7,4508.3,3.15344366]
[1758072731203,3.4168,4508.8,4508.7,0.7077]
[1758072731597,3.9442,4508.8,4508.7,0.3984]
[1758072732093,0.8543,4508.5,4508.4,0.1973]
[1758072732294,0.8543,4508.5,4508.2,0.223]
[1758072732497,0.5358,4508.0,4507.9,0.1973]
[1758072732698,0.8543,4508.0,4507.9,0.4203]
[1758072733103,0.8543,4508.0,4507.9,0.9307]
[1758072733404,0.8543,4508.0,4507.9,3.68574366]
[1758072734300,0.1179,4508.5,4507.9,3.68574366]
[1758072734498,0.6454,4508.5,4508.4,0.7077]
[1758072734698,0.8543,4508.5,4508.4,0.7077]
[1758072736003,0.7364,4508.5,4508.4,0.7077]
[1758072736602,0.5275,4508.5,4508.4,3.46274366]
[1758072737003,0.8543,4508.5,4508.3,0.224]
[1758072737911,0.4179,4508.2,4508.1,0.4213]
[1758072738210,0.7364,4508.2,4508.1,0.9317]
[1758072738608,0.5275,4508.2,4508.1,0.9317]
[1758072738907,0.6454,4508.5,4508.4,0.3984]
[1758072739208,0.6454,4508.5,4508.4,0.7077]
[1758072739812,0.8543,4508.5,4508.4,1.49472169]
[1758072740512,0.8543,4508.5,4508.4,1.18542169]
[1758072740716,0.8543,4508.5,4508.4,0.78702169]
[1758072741406,0.3185,4509.0,4508.8,0.3093]
[1758072741707,0.224,4509.4,4508.7,0.3093]
[1758072741708,0.7364,4509.4,4508.7,0.3093]
[1758072741912,0.7364,4509.4,4509.3,0.78702169]
[1758072742709,0.7364,4509.4,4509.3,0.98432169]
[1758072744008,0.7364,4509.4,4509.3,1.49472169]
[1758072744214,0.8543,4510.0,4509.9,0.7077]
[1758072744507,0.8543,4510.0,4509.9,0.78702169]
[1758072744710,0.1179,4509.5,4509.4,0.78702169]
[1758072744914,0.7364,4508.9,4508.8,3.6291]
[1758072745115,0.7364,4508.9,4508.8,4.41612169]
[1758072745516,0.7364,4508.9,4508.8,4.61722169]
[1758072745710,0.7364,4508.9,4508.8,1.71872169]
[1758072745913,0.7364,4508.9,4508.8,1.65200284]
[1758072747112,0.7364,4508.9,4508.8,1.14160284]
[1758072747317,0.5358,4508.5,4508.4,1.14160284]
[1758072747517,0.8543,4508.5,4508.4,1.36560284]
[1758072747718,0.5275,4508.5,4508.4,1.87600284]
[1758072749316,0.8573,4508.5,4508.4,1.65180284]
[1758072749522,0.5275,4508.5,4508.4,1.87580284]
[1758072752226,0.5275,4508.5,4508.4,1.65180284]
[1758072752528,0.8486,4508.5,4508.4,1.65180284]
[1758072752820,0.7277,4508.5,4508.4,1.87580284]
[1758072753027,0.8486,4508.5,4508.4,1.56670284]
[1758072753227,0.8486,4508.5,4508.4,1.34270284]
[1758072753427,0.8486,4508.5,4508.4,1.56670284]
[1758072753627,0.8486,4508.5,4508.4,0.94430284]
[1758072753821,0.8486,4508.5,4508.4,0.224]
[1758072754027,0.5301,4508.5,4508.0,1.16830284]
[1758072754227,0.4087,4508.1,4508.0,1.37290284]
[1758072754428,0.7138,4508.1,4508.0,1.58000284]
[1758072754727,0.3051,4508.4,4508.0,1.67770284]
[1758072754929,0.7138,4508.9,4508.8,0.4117]
[1758072755522,0.7138,4508.9,4508.8,1.35600284]
[1758072756432,0.7138,4508.9,4508.8,1.66510284]
[1758072760928,0.9378,4509.4,4509.3,0.2046]
[1758072761131,0.9378,4509.4,4509.3,1.14890284]
[1758072761531,0.9378,4509.4,4509.3,1.66510284]
[1758072761737,3.2078,4510.2,4509.6,0.4117]
[1758072762033,0.3051,4509.9,4509.8,0.7208]
[1758072762233,0.5136,4509.9,4509.8,0.7208]
[1758072763134,0.4087,4509.4,4509.3,3.4124]
[1758072763336,0.7138,4509.4,4509.1,0.224]
[1758072763936,0.7138,4509.4,4509.3,0.2046]
[1758072765833,0.7138,4509.4,4509.3,0.7208]
[1758072766135,0.7138,4509.4,4509.3,1.66510284]
[1758072766338,0.3051,4509.9,4509.3,1.35600284]
[1758072766635,0.3051,4509.9,4509.8,1.66510284]
[1758072766636,0.7138,4509.9,4509.8,1.66510284]
[1758072767537,0.7138,4509.9,4509.8,1.35600284]
[1758072767931,0.1209,4509.5,4509.4,0.94430284]
[1758072768131,0.8347,4509.5,4509.4,0.94430284]
[1758072768330,0.8347,4509.5,4509.4,1.14890284]
[1758072769139,0.3051,4509.4,4509.1,0.224]
[1758072769433,0.7138,4509.2,4509.1,0.4286]
[1758072769639,0.7138,4509.2,4509.1,0.2046]
[1758072769938,0.8347,4509.0,4508.9,1.14890284]
[1758072770127,0.8347,4509.0,4508.9,1.35600284]
[1758072770533,0.8347,4509.0,4508.9,1.66510284]
[1758072772838,0.5136,4509.0,4508.9,1.66510284]
[1758072773040,0.3051,4510.0,4509.9,0.7208]
[1758072773245,0.3051,4510.0,4509.9,1.66510284]
[1758072773446,0.8347,4510.0,4509.9,1.66510284]
[1758072774040,0.8347,4510.0,4509.9,1.35600284]
[1758072775345,0.8347,4510.0,4509.9,1.14890284]
[1758072776636,0.4052,4509.7,4509.6,1.15520284]
[1758072776842,0.714,4509.7,4509.6,1.65800284]
[1758072777441,0.3088,4509.6,4509.5,0.2109]
[1758072777847,0.714,4509.6,4509.5,0.2109]
[1758072778845,0.717,4509.3,4509.2,0.4391]
[1758072779047,0.4109,4509.3,4509.1,4.15210284]
[1758072779349,0.717,4508.8,4508.7,1.65640284]
[1758072779546,0.717,4508.8,4508.7,1.88040284]
[1758072779748,0.717,4508.8,4508.7,1.35870284]
[1758072780148,0.717,4508.8,4508.6,0.0221]
[1758072780749,0.717,4508.8,4508.7,1.15940284]
[1758072780951,0.3061,4509.4,4509.3,0.7121]
[1758072781154,0.5152,4509.4,4509.3,1.65640284]
[1758072781655,0.3061,4509.4,4509.3,1.65640284]
[1758072781851,3.5139,4509.6,4509.3,1.35870284]
[1758072782056,3.5139,4509.6,4509.5,0.7121]
[1758072782256,0.3061,4510.0,4509.9,0.4144]
[1758072782558,0.5152,4510.0,4509.9,1.65640284]
[1758072782855,0.8452,4510.0,4509.9,1.65640284]
[1758072783049,0.5391,4510.0,4509.6,0.94430284]
[1758072783258,0.5391,4510.0,4508.6,2.01009677]
[1758072783259,0.5391,4509.0,4508.9,0.2151]
[1758072783557,0.8452,4509.0,4508.6,0.0221]
[1758072784350,0.8452,4509.0,4508.9,0.7121]
[1758072784351,0.717,4509.0,4508.9,0.7121]
[1758072784552,0.5152,4509.0,4508.9,0.7121]
[1758072784745,0.5152,4509.0,4508.9,3.9199]
[1758072785257,0.8452,4509.0,4508.9,3.6222]
[1758072785751,0.8452,4509.0,4508.9,3.9199]
[1758072786567,0.8452,4509.0,4508.9,3.4229]
[1758072787566,0.8452,4509.0,4508.9,0.2151]
[1758072787950,0.8452,4509.0,4508.8,0.94430284]
[1758072788166,0.717,4508.9,4508.4,4.15210284]
[1758072788355,0.8452,4508.5,4508.4,4.36720284]
[1758072789363,0.8452,4508.5,4508.4,4.56650284]
[1758072790058,0.1282,4509.0,4508.4,4.56650284]
[1758072790264,0.8452,4509.0,4508.9,1.65640284]
[1758072790465,0.717,4509.0,4508.9,1.65640284]
[1758072790759,0.3522,4509.5,4508.9,4.86420284]
[1758072790957,0.4109,4509.4,4509.3,0.94430284]
[1758072791153,0.717,4509.4,4509.3,1.35870284]
[1758072792562,0.717,4509.4,4509.3,1.65640284]
[1758072793967,0.5152,4509.4,4509.3,1.65640284]
[1758072795063,0.717,4509.4,4509.3,1.65640284]
[1758072795662,3.2078,4509.9,4509.3,1.65640284]
[1758072795862,3.4318,4509.9,4509.3,1.35870284]
[1758072796168,0.717,4509.8,4509.7,0.2151]
[1758072796468,0.717,4509.8,4509.7,0.4144]
[1758072796867,0.717,4509.8,4509.7,0.2151]
[1758072797667,0.5391,4509.5,4509.3,0.94430284]
[1758072797962,0.717,4509.4,4509.3,0.2151]
[1758072798172,0.717,4508.9,4508.8,0.9361]
[1758072798465,0.717,4508.9,4508.8,1.88040284]
[1758072799067,0.5152,4508.9,4508.8,1.88040284]
[1758072800166,0.5152,4508.9,4508.8,1.65640284]
[1758072800666,0.717,4508.9,4508.8,1.65640284]
[1758072800970,0.717,4508.9,4508.8,1.35870284]
[1758072801168,0.717,4508.9,4508.8,1.65640284]
[1758072801369,0.5152,4508.9,4508.8,1.65640284]
[1758072802272,0.717,4508.9,4508.8,1.65640284]
[1758072803572,0.3061,4509.5,4509.2,0.2977]
[1758072803774,0.5152,4509.9,4509.8,0.7121]
[1758072803968,0.5152,4509.9,4509.8,1.65640284]
[1758072805268,3.2078,4510.0,4509.9,0.7121]
[1758072805468,0.224,4510.4,4509.9,3.6222]
[1758072805669,0.5152,4510.3,4510.2,0.4144]
[1758072805870,0.717,4510.3,4510.2,0.7121]
[1758072807872,0.717,4510.3,4510.2,1.4985736]
[1758072808379,0.5152,4510.3,4510.2,1.4985736]
[1758072809070,3.2078,4511.2,4511.1,0.4024]
[1758072809266,3.2078,4511.2,4511.1,1.4993736]
[1758072809465,0.3058,4511.8,4511.2,0.3105]
[1758072809671,0.7193,4511.8,4511.7,1.4993736]
[1758072809865,0.7193,4511.8,4511.7,0.9847736]
[1758072810071,0.7193,4511.4,4511.3,0.9847736]
[1758072811076,0.7193,4511.4,4511.3,1.1888736]
[1758072811266,0.7193,4511.4,4511.3,0.9847736]
[1758072811471,0.7193,4511.4,4511.3,0.7864736]
[1758072811672,0.7193,4511.4,4511.3,0.9847736]
[1758072811875,0.3058,4511.7,4511.3,1.1888736]
[1758072812180,0.7193,4511.7,4511.6,1.1888736]
[1758072812476,0.7193,4511.4,4511.3,0.9847736]
[1758072812875,0.7193,4511.4,4511.3,0.1983]
[1758072813480,0.7193,4511.4,4511.3,0.9847736]
[1758072816970,3.2078,4511.5,4511.3,1.1888736]
[1758072817171,3.2078,4511.5,4511.4,0.7129]
[1758072818880,3.7236,4511.5,4511.4,0.7129]
[1758072820781,4.053,4511.5,4511.1,0.0221]
[1758072821283,3.7472,4511.5,4511.2,0.7864736]
[1758072821479,0.4135,4511.3,4511.2,0.7864736]
[1758072821684,0.7193,4511.3,4511.2,0.7864736]
[1758072824882,0.7193,4511.3,4511.1,0.0221]
[1758072826484,0.9433,4511.3,4511.1,0.0221]
[1758072827883,0.7864736,4511.2,4511.1,0.0221]
[1758072828088,0.7193,4510.2,4510.1,0.7864736]
[1758072828788,0.7193,4510.2,4510.1,0.9847736]
[1758072829090,0.7193,4510.2,4510.1,0.7864736]
[1758072831189,0.4135,4509.8,4509.7,0.1983]
[1758072831389,0.7193,4509.8,4509.7,1.1888736]
[1758072832082,0.1259,4509.5,4509.4,0.7864736]
[1758072832385,0.8452,4509.5,4509.4,0.9847736]
[1758072833384,0.8452,4509.5,4509.4,0.1983]
[1758072833691,0.8452,4509.5,4509.4,1.1888736]
[1758072833887,0.8452,4509.5,4509.4,1.4993736]
[1758072834183,0.7193,4509.5,4509.4,1.4993736]
[1758072834383,0.7193,4509.5,4509.4,1.1888736]
[1758072834384,0.8452,4509.5,4509.4,1.1888736]
[1758072834588,0.3058,4509.4,4509.1,0.7864736]
[1758072834788,0.7193,4509.2,4509.1,0.7864736]
[1758072834982,0.7193,4509.2,4509.1,1.1832736]
[1758072835591,0.7193,4509.2,4509.1,0.9823736]
[1758072838691,0.7193,4509.2,4508.8,0.3051]
[1758072838896,0.7152,4508.9,4508.8,0.2039]
[1758072839995,0.7152,4508.9,4508.8,0.9903736]
[1758072840191,0.7152,4508.9,4508.4,3.2078]
[1758072840394,0.8369,4508.5,4508.4,0.2039]
[1758072840595,0.8369,4508.5,4508.4,0.7249]
[1758072840791,0.1217,4509.0,4508.5,0.3155]
[1758072841095,0.8369,4509.0,4508.9,0.2039]
[1758072841490,0.8369,4509.0,4508.9,0.9903736]
[1758072841697,0.8369,4509.0,4508.9,0.7864736]
[1758072842589,0.8369,4509.0,4508.9,0.9903736]
[1758072844590,0.8369,4509.0,4508.9,0.7864736]
[1758072845199,0.8369,4509.0,4508.9,0.9903736]
[1758072846600,0.8369,4509.0,4508.9,1.5113736]
[1758072846792,0.7152,4509.0,4508.9,1.5113736]
[1758072847500,0.514,4509.0,4508.9,1.5113736]
[1758072848098,0.5424,4509.2,4509.1,0.7249]
[1758072848398,0.738,4509.2,4509.1,0.7249]
[1758072848796,0.9392,4509.2,4509.1,0.7249]
[1758072849097,0.9392,4509.2,4508.7,0.3155]
[1758072849098,0.5185,4509.0,4508.7,0.3155]
[1758072849400,0.7152,4508.9,4508.8,0.4094]
[1758072850498,0.1217,4508.5,4508.2,0.0221]
[1758072850688,1.5016736,4508.3,4508.2,0.0221]
[1758072850891,0.3184,4508.2,4507.4,0.3155]
[1758072851098,0.514,4507.5,4507.4,0.7249]
[1758072851296,0.3184,4507.9,4507.4,1.1958736]
[1758072851600,0.6357,4508.0,4507.9,0.7249]
[1758072852807,0.8369,4508.0,4507.9,0.7249]
[1758072853304,0.3184,4507.9,4507.5,0.3155]
[1758072853605,0.7152,4507.6,4507.5,0.7249]
[1758072853795,0.7152,4507.6,4507.5,1.5113736]
[1758072855302,0.514,4507.6,4507.5,1.5113736]
[1758072855994,0.3184,4507.9,4507.5,1.3023736]
[1758072856200,0.3184,4507.9,4507.8,1.5113736]
[1758072856404,0.3184,4508.0,4507.9,0.3155]
[1758072856701,0.3184,4508.0,4507.9,0.7249]
[1758072858704,3.4318,4508.3,4508.2,0.3155]
[1758072858897,3.9458,4508.3,4508.2,0.7249]
[1758072859207,3.9458,4508.3,4508.2,1.5113736]
[1758072859804,3.7218,4508.3,4508.2,1.5113736]
[1758072860604,0.514,4508.3,4508.2,1.5113736]
[1758072861303,0.7152,4508.3,4508.2,1.5113736]
[1758072863608,0.514,4508.3,4508.2,1.5113736]
[1758072864601,0.7152,4508.3,4508.2,1.5113736]
[1758072865498,0.7152,4508.3,4508.2,1.1958736]
[1758072865899,0.7152,4508.3,4508.2,1.5113736]
[1758072867106,0.514,4508.3,4508.2,1.5113736]
[1758072869004,0.5259,4508.5,4508.4,0.4065]
[1758072869310,0.3019,4508.7,4508.5,0.3215]
[1758072869610,0.5035,4508.7,4508.6,1.5144736]
[1758072869811,0.5035,4508.7,4508.6,1.67246686]
[1758072870004,0.7045,4508.7,4508.6,1.67246686]
[1758072870502,0.7045,4508.7,4508.6,0.4065]
[1758072871304,0.7045,4508.7,4508.6,0.728]
[1758072872003,0.7045,4508.7,4508.6,1.67246686]
[1758072874914,0.5035,4508.7,4508.6,1.67246686]
[1758072875114,0.3019,4508.7,4508.6,1.67246686]
[1758072876809,0.3457,4509.0,4508.6,1.67246686]
[1758072877015,0.3019,4508.9,4508.8,0.728]
[1758072877715,0.7045,4508.9,4508.8,0.4065]
[1758072878111,0.7045,4508.9,4508.8,0.728]
[1758072880614,0.7045,4508.9,4508.8,0.2025]
[1758072881015,0.7045,4508.9,4508.8,0.728]
[1758072881612,0.7045,4508.9,4508.8,0.4065]
[1758072882614,0.4026,4508.9,4508.3,3.2299]
[1758072882810,0.7045,4508.6,4508.5,1.14696686]
[1758072883112,0.7045,4508.4,4508.3,0.0221]
[1758072883413,0.4026,4508.4,4507.7,1.26596686]
[1758072883616,0.5035,4507.8,4507.7,1.89429686]
[1758072884707,0.5035,4507.8,4507.7,1.67246686]
[1758072885317,0.7045,4507.8,4507.7,1.35096686]
[1758072887410,0.7045,4507.8,4507.7,1.67246686]
[1758072889217,0.7045,4507.8,4507.7,0.4065]
[1758072889514,0.1253,4507.5,4507.3,3.2299]
[1758072889719,0.1253,4508.0,4507.4,1.35096686]
[1758072889919,0.5279,4508.0,4507.9,0.4065]
[1758072890117,0.8298,4508.0,4507.9,0.728]
[1758072890517,0.8298,4508.0,4507.9,0.4065]
[1758072895521,0.7239,4507.9,4507.7,0.94446686]
[1758072895722,0.3048,4507.8,4507.7,0.94446686]
[1758072896223,0.7239,4507.8,4507.7,0.94446686]
[1758072896425,0.7239,4507.8,4507.7,1.14876686]
[1758072899528,0.7239,4507.8,4506.8,3.4212]
[1758072899529,0.7185,4506.9,4506.8,3.4212]
[1758072899716,0.7185,4506.9,4506.8,3.9192]
[1758072899924,0.7185,4506.9,4506.8,4.86366686]
[1758072900118,0.5074,4506.9,4506.8,4.86366686]
[1758072900534,0.7314,4507.5,4507.4,0.42]
[1758072900828,0.5074,4507.5,4507.4,0.7114]
[1758072901131,0.8377,4507.5,4507.4,0.42]
[1758072901429,0.8377,4507.5,4507.2,0.94446686]
[1758072901622,0.1942,4507.3,4507.2,0.94446686]
[1758072901832,0.3132,4507.3,4507.2,1.65586686]
[1758072902225,0.5074,4507.3,4507.2,0.7114]
[1758072902440,0.224,4507.6,4507.2,1.65586686]
[1758072902626,0.3132,4507.5,4507.2,1.36446686]
[1758072902927,0.3132,4507.5,4507.4,0.7114]
[1758072903229,0.3132,4507.7,4507.6,0.7114]
[1758072903433,0.3132,4507.7,4507.6,1.65586686]
[1758072904128,3.521,4507.8,4507.7,0.7114]
[1758072904328,3.2078,4507.8,4507.7,0.7114]
[1758072905531,0.3132,4508.4,4507.8,0.2914]
[1758072905831,0.5074,4508.4,4508.3,1.65586686]
[1758072906433,0.5372,4508.9,4508.4,0.2914]
[1758072906733,0.7314,4508.9,4508.8,1.65586686]
[1758072907034,0.9425,4508.9,4508.8,1.65586686]
[1758072907334,0.7314,4508.9,4508.8,1.65586686]
[1758072907731,0.9425,4508.9,4508.8,1.65586686]
[1758072907930,0.9425,4508.9,4508.3,0.2914]
[1758072908127,0.9425,4508.9,4508.8,1.15786686]
[1758072908632,0.9425,4508.9,4508.8,1.36446686]
[1758072908935,0.9425,4508.9,4508.8,1.65586686]
[1758072910634,0.7185,4508.1,4508.0,0.2134]
[1758072910837,0.7185,4507.7,4507.6,1.65586686]
[1758072911225,0.7185,4507.7,4507.6,1.87771686]
[1758072911430,0.5074,4507.7,4507.6,1.87771686]
[1758072911629,0.3132,4507.7,4507.6,1.87771686]
[1758072911829,0.5074,4507.7,4507.6,1.65586686]
[1758072912029,0.7185,4507.7,4507.6,0.94446686]
[1758072912534,0.7185,4507.7,4507.6,1.15786686]
[1758072913535,0.5074,4507.7,4507.6,1.65586686]
[1758072913726,0.3132,4507.7,4507.6,1.65586686]
[1758072913932,0.3132,4507.9,4507.7,0.2914]
[1758072914232,0.7185,4507.9,4507.8,0.7114]
[1758072914434,0.7185,4507.9,4507.8,0.42]
[1758072916332,0.7185,4507.9,4507.8,0.7114]
[1758072917640,3.7152,4508.4,4508.3,0.7114]
[1758072917941,3.9263,4508.4,4508.3,1.15786686]
[1758072918136,3.9263,4508.4,4508.3,0.2134]
[1758072918938,3.9263,4508.4,4508.2,0.94446686]
[1758072919138,0.7185,4508.3,4508.2,0.94446686]
[1758072919536,0.7185,4508.3,4508.2,1.15786686]
[1758072920145,0.7185,4508.3,4508.2,1.36446686]
[1758072920441,3.2078,4508.4,4508.2,1.36446686]
[1758072920642,3.521,4508.4,4508.3,0.7114]
[1758072922044,3.7152,4508.4,4508.3,0.7114]
[1758072922546,0.5074,4508.4,4508.3,0.7114]
[1758072923641,0.3132,4508.9,4508.4,0.2914]
[1758072923940,0.5074,4508.9,4508.8,1.65586686]
[1758072924141,0.7185,4508.9,4508.8,1.65586686]
[1758072924334,0.8377,4508.5,4508.4,3.2078]
[1758072924839,1.0617,4508.5,4508.4,3.2078]
[1758072925039,0.8377,4508.0,4507.6,0.0221]
[1758072925342,0.7185,4507.7,4506.5,1.23586686]
[1758072925648,0.7185,4506.6,4506.5,0.2134]
[1758072925849,0.7185,4506.6,4506.5,1.15786686]
[1758072928951,0.7185,4506.6,4506.5,1.36446686]
[1758072929153,0.7209,4506.6,4506.5,1.15086686]
[1758072929747,0.7209,4506.6,4506.5,0.9941208]
[1758072929948,0.7209,4506.6,4506.4,3.2078]
[1758072929949,0.4053,4506.6,4506.4,3.2078]
[1758072930142,0.7251,4506.1,4506.0,0.22859288]
[1758072930344,0.7251,4506.1,4506.0,1.01631368]
[1758072934651,0.5155,4506.1,4506.0,2.31793448]
[1758072934854,0.3156,4506.1,4506.0,2.31793448]
[1758072935458,0.5155,4506.1,4506.0,2.31793448]
[1758072936650,0.5155,4506.2,4506.1,0.5139]
[1758072936845,0.5155,4506.2,4506.1,0.7203]
[1758072937454,0.5155,4506.2,4506.1,1.2078208]
[1758072937455,0.7251,4506.2,4506.1,1.2078208]
[1758072937760,0.7251,4506.2,4506.1,0.7877208]